[Event "Early-Titled-Tuesday-Blitz-November-28-2023"]
[Site "Chess.com"]
[Date "2023.11.28"]
[Round "2"]
[White "psychokiller48"]
[Black "zeitnotakrobat"]
[Result "1-0"]
[WhiteElo "2714"]
[BlackElo "2414"]
[TimeControl "180+1"]
[EndTime "8:18:40 PST"]
[Termination "psychokiller48 won on time"]

1. e4 {[%clk 0:02:53]} 1... c5 {[%clk 0:02:59.5]} 2. Nf3 {[%clk 0:02:52.8]} 2...
e6 {[%clk 0:02:58.5]} 3. Nc3 {[%clk 0:02:51.3]} 3... Nc6 {[%clk 0:02:54.7]} 4.
d4 {[%clk 0:02:50.1]} 4... cxd4 {[%clk 0:02:54.5]} 5. Nxd4 {[%clk 0:02:51]} 5...
Qc7 {[%clk 0:02:53]} 6. a3 {[%clk 0:02:49.8]} 6... a6 {[%clk 0:02:52.8]} 7. Be3
{[%clk 0:02:48.9]} 7... Nf6 {[%clk 0:02:52.1]} 8. Be2 {[%clk 0:02:48.5]} 8...
Be7 {[%clk 0:02:49.9]} 9. O-O {[%clk 0:02:44]} 9... O-O {[%clk 0:02:40.2]} 10.
f4 {[%clk 0:02:38.5]} 10... d6 {[%clk 0:02:39.9]} 11. Qe1 {[%clk 0:02:37.8]}
11... Bd7 {[%clk 0:02:31.2]} 12. Qg3 {[%clk 0:02:14.8]} 12... Nxd4 {[%clk
0:02:22.8]} 13. Bxd4 {[%clk 0:02:15.7]} 13... Bc6 {[%clk 0:02:23.1]} 14. Kh1
{[%clk 0:01:58.4]} 14... Rfe8 {[%clk 0:02:09.1]} 15. Bd3 {[%clk 0:01:47.5]}
15... g6 {[%clk 0:01:56.9]} 16. f5 {[%clk 0:01:40.1]} 16... e5 {[%clk
0:01:52.4]} 17. Be3 {[%clk 0:01:35.5]} 17... b5 {[%clk 0:01:49.6]} 18. Bg5
{[%clk 0:01:18.6]} 18... Qd8 {[%clk 0:01:31.6]} 19. Qh4 {[%clk 0:01:14.4]} 19...
Nh5 {[%clk 0:01:18.9]} 20. f6 {[%clk 0:01:05.3]} 20... Bf8 {[%clk 0:01:18.8]}
21. Rae1 {[%clk 0:00:42.6]} 21... Rb8 {[%clk 0:01:12.8]} 22. Nd5 {[%clk
0:00:34.3]} 22... Bxd5 {[%clk 0:01:05.5]} 23. exd5 {[%clk 0:00:35.2]} 23... a5
{[%clk 0:00:49.5]} 24. g3 {[%clk 0:00:33.7]} 24... b4 {[%clk 0:00:48.2]} 25. a4
{[%clk 0:00:31.9]} 25... Qd7 {[%clk 0:00:33.6]} 26. b3 {[%clk 0:00:23.9]} 26...
Qb7 {[%clk 0:00:21.6]} 27. Bc4 {[%clk 0:00:20.6]} 27... Rbc8 {[%clk 0:00:19.4]}
28. Re4 {[%clk 0:00:19.5]} 28... Rc5 {[%clk 0:00:17]} 29. g4 {[%clk 0:00:19.2]}
29... Nf4 {[%clk 0:00:16]} 30. Bxf4 {[%clk 0:00:18.5]} 30... Rxd5 {[%clk
0:00:15.4]} 31. Bxd5 {[%clk 0:00:09.7]} 31... Qxd5 {[%clk 0:00:15.3]} 32. Qe1
{[%clk 0:00:08.7]} 32... Rc8 {[%clk 0:00:14.6]} 33. Rf2 {[%clk 0:00:07.7]} 33...
exf4 {[%clk 0:00:14]} 34. Kg1 {[%clk 0:00:08.2]} 34... f3 {[%clk 0:00:13.9]} 35.
Re8 {[%clk 0:00:07.3]} 35... Rxe8 {[%clk 0:00:13.3]} 36. Qxe8 {[%clk 0:00:08.2]}
36... Qd1+ {[%clk 0:00:12.3]} 37. Rf1 {[%clk 0:00:08.6]} 37... Qd4+ {[%clk
0:00:12.3]} 38. Kh1 {[%clk 0:00:08.5]} 38... Qd5 {[%clk 0:00:11.9]} 39. h3
{[%clk 0:00:04.9]} 39... f2+ {[%clk 0:00:11.5]} 40. Kh2 {[%clk 0:00:05.5]} 40...
Qd4 {[%clk 0:00:09.5]} 41. Qe2 {[%clk 0:00:05.3]} 41... Qf4+ {[%clk 0:00:09.4]}
42. Kg2 {[%clk 0:00:05.3]} 42... Qxf6 {[%clk 0:00:09.8]} 43. Qxf2 {[%clk
0:00:05.9]} 43... Qe6 {[%clk 0:00:09.1]} 44. Qf3 {[%clk 0:00:05.4]} 44... Bg7
{[%clk 0:00:08.7]} 45. Rf2 {[%clk 0:00:05.7]} 45... Be5 {[%clk 0:00:08.6]} 46.
Re2 {[%clk 0:00:04.9]} 46... Kg7 {[%clk 0:00:08.5]} 47. Rd2 {[%clk 0:00:04.5]}
47... Qc8 {[%clk 0:00:07.5]} 48. Qd5 {[%clk 0:00:04.2]} 48... Qc3 {[%clk
0:00:06.4]} 49. Rf2 {[%clk 0:00:04.8]} 49... f6 {[%clk 0:00:06.7]} 50. Qf3
{[%clk 0:00:03.7]} 50... Qe1 {[%clk 0:00:05.3]} 51. Re2 {[%clk 0:00:03.8]} 51...
Qc1 {[%clk 0:00:05]} 52. Qb7+ {[%clk 0:00:04.2]} 52... Kh6 {[%clk 0:00:05]} 53.
h4 {[%clk 0:00:04.7]} 53... Qd1 {[%clk 0:00:03.1]} 54. Qe4 {[%clk 0:00:04]} 1-0

[Event "Early-Titled-Tuesday-Blitz-November-28-2023"]
[Site "Chess.com"]
[Date "2023.11.28"]
[Round "2"]
[White "tantaan"]
[Black "Boundless_Strike"]
[Result "1-0"]
[WhiteElo "2358"]
[BlackElo "2673"]
[TimeControl "180+1"]
[EndTime "8:18:40 PST"]
[Termination "tantaan won by checkmate"]

1. d4 {[%clk 0:03:00.9]} 1... e5 {[%clk 0:02:59.1]} 2. d5 {[%clk 0:03:00.3]}
2... Bc5 {[%clk 0:02:57.5]} 3. e4 {[%clk 0:02:58.5]} 3... f5 {[%clk 0:02:55.9]}
4. exf5 {[%clk 0:02:49.3]} 4... Nf6 {[%clk 0:02:54.9]} 5. c4 {[%clk 0:02:48.3]}
5... d6 {[%clk 0:02:54.7]} 6. Nc3 {[%clk 0:02:48.2]} 6... Bxf5 {[%clk
0:02:54.4]} 7. Bg5 {[%clk 0:02:47.4]} 7... O-O {[%clk 0:02:44.4]} 8. Nf3 {[%clk
0:02:41.8]} 8... Qe8 {[%clk 0:02:27.3]} 9. Be2 {[%clk 0:02:35.4]} 9... Ng4
{[%clk 0:02:16.1]} 10. O-O {[%clk 0:02:23.8]} 10... Qh5 {[%clk 0:01:59.4]} 11.
h3 {[%clk 0:02:17.5]} 11... Nxf2 {[%clk 0:01:59.2]} 12. Rxf2 {[%clk 0:02:17.2]}
12... Bxf2+ {[%clk 0:02:00]} 13. Kxf2 {[%clk 0:02:16.2]} 13... e4 {[%clk
0:01:41.6]} 14. Be7 {[%clk 0:02:11.1]} 14... Rf7 {[%clk 0:00:55.7]} 15. Ng5
{[%clk 0:02:00.8]} 15... Qh4+ {[%clk 0:00:35.4]} 16. g3 {[%clk 0:01:58]} 16...
Bxh3+ {[%clk 0:00:24.1]} 17. Nxf7 {[%clk 0:01:54.7]} 17... e3+ {[%clk
0:00:24.2]} 18. Kxe3 {[%clk 0:01:01]} 18... Qxe7+ {[%clk 0:00:24.1]} 19. Kd2
{[%clk 0:01:01.4]} 19... Qxf7 {[%clk 0:00:23.2]} 20. Qg1 {[%clk 0:01:00.4]}
20... Na6 {[%clk 0:00:19.7]} 21. Re1 {[%clk 0:00:46.1]} 21... Re8 {[%clk
0:00:18.2]} 22. Bd3 {[%clk 0:00:44.5]} 22... Nc5 {[%clk 0:00:15.5]} 23. Rxe8+
{[%clk 0:00:39.1]} 23... Qxe8 {[%clk 0:00:16.4]} 24. Bc2 {[%clk 0:00:37.5]}
24... Bg4 {[%clk 0:00:13]} 25. Qd4 {[%clk 0:00:30.8]} 25... Qh5 {[%clk
0:00:09.4]} 26. b4 {[%clk 0:00:26.9]} 26... Qh2+ {[%clk 0:00:08.6]} 27. Kc1
{[%clk 0:00:24.8]} 27... Nd7 {[%clk 0:00:08.1]} 28. Qxg4 {[%clk 0:00:23.2]}
28... Qg1+ {[%clk 0:00:08.2]} 29. Kb2 {[%clk 0:00:23.1]} 29... Ne5 {[%clk
0:00:08.7]} 30. Qc8+ {[%clk 0:00:23]} 30... Kf7 {[%clk 0:00:08.9]} 31. Qxc7+
{[%clk 0:00:23.3]} 31... Kg8 {[%clk 0:00:07.6]} 32. Qd8+ {[%clk 0:00:22.6]}
32... Kf7 {[%clk 0:00:07.8]} 33. Qc7+ {[%clk 0:00:20.9]} 33... Kg8 {[%clk
0:00:08]} 34. Qc8+ {[%clk 0:00:20.2]} 34... Kf7 {[%clk 0:00:08.1]} 35. Qxb7+
{[%clk 0:00:21]} 35... Kf6 {[%clk 0:00:08]} 36. Qc7 {[%clk 0:00:18.5]} 36... Kg5
{[%clk 0:00:05.1]} 37. Kb3 {[%clk 0:00:17.3]} 37... g6 {[%clk 0:00:04.8]} 38.
Qe7+ {[%clk 0:00:17.3]} 38... Kh6 {[%clk 0:00:04.7]} 39. Qf8+ {[%clk 0:00:17.2]}
39... Kg5 {[%clk 0:00:04.9]} 40. Qxd6 {[%clk 0:00:17.8]} 40... Qd4 {[%clk
0:00:04.7]} 41. Ne4+ {[%clk 0:00:17.2]} 41... Kg4 {[%clk 0:00:03.2]} 42. Qe6+
{[%clk 0:00:16]} 42... Kf3 {[%clk 0:00:03]} 43. Ng5+ {[%clk 0:00:15.3]} 43...
Kxg3 {[%clk 0:00:02.5]} 44. Qh3+ {[%clk 0:00:14.2]} 44... Kf2 {[%clk 0:00:02.9]}
45. Qh2+ {[%clk 0:00:13.1]} 45... Ke1 {[%clk 0:00:03.1]} 46. Qxe5+ {[%clk
0:00:11.7]} 46... Qxe5 {[%clk 0:00:02.4]} 47. Nf3+ {[%clk 0:00:12.4]} 47... Kf2
{[%clk 0:00:03.3]} 48. Nxe5 {[%clk 0:00:12.5]} 48... Ke3 {[%clk 0:00:04.2]} 49.
d6 {[%clk 0:00:12.9]} 49... g5 {[%clk 0:00:04.9]} 50. d7 {[%clk 0:00:13.8]}
50... g4 {[%clk 0:00:05.8]} 51. d8=Q {[%clk 0:00:14.3]} 51... g3 {[%clk
0:00:05.3]} 52. Qd3+ {[%clk 0:00:15]} 52... Kf2 {[%clk 0:00:05.7]} 53. Qf3+
{[%clk 0:00:14.9]} 53... Ke1 {[%clk 0:00:06.5]} 54. Qxg3+ {[%clk 0:00:15.1]}
54... Kd2 {[%clk 0:00:07.4]} 55. Qd3+ {[%clk 0:00:15.1]} 55... Kc1 {[%clk
0:00:08.3]} 56. Nf3 {[%clk 0:00:14.8]} 56... a5 {[%clk 0:00:09.2]} 57. Qd1#
{[%clk 0:00:15.4]} 1-0

[Event "Early-Titled-Tuesday-Blitz-November-28-2023"]
[Site "Chess.com"]
[Date "2023.11.28"]
[Round "2"]
[White "Korchmar_Vasiliy"]
[Black "angryspacevoid"]
[Result "1-0"]
[WhiteElo "2732"]
[BlackElo "2468"]
[TimeControl "180+1"]
[EndTime "8:18:44 PST"]
[Termination "Korchmar_Vasiliy won by checkmate"]

1. e4 {[%clk 0:02:56.3]} 1... e6 {[%clk 0:02:56.5]} 2. d4 {[%clk 0:02:55.2]}
2... d5 {[%clk 0:02:57]} 3. e5 {[%clk 0:02:55.6]} 3... c5 {[%clk 0:02:57.1]} 4.
c3 {[%clk 0:02:56.1]} 4... Nc6 {[%clk 0:02:57.3]} 5. Nf3 {[%clk 0:02:56.3]} 5...
Bd7 {[%clk 0:02:57.6]} 6. Be2 {[%clk 0:02:54.2]} 6... Nge7 {[%clk 0:02:41]} 7.
Na3 {[%clk 0:02:52.7]} 7... a6 {[%clk 0:02:38.3]} 8. O-O {[%clk 0:02:51.7]} 8...
cxd4 {[%clk 0:02:37.4]} 9. cxd4 {[%clk 0:02:52.6]} 9... Nf5 {[%clk 0:02:37.1]}
10. Nc2 {[%clk 0:02:52.5]} 10... h5 {[%clk 0:02:36]} 11. Bd3 {[%clk 0:02:51.9]}
11... g6 {[%clk 0:02:35.5]} 12. Rb1 {[%clk 0:02:40.3]} 12... Rc8 {[%clk
0:02:33.6]} 13. b4 {[%clk 0:02:37.3]} 13... Na7 {[%clk 0:02:32.1]} 14. Bxf5
{[%clk 0:02:31.8]} 14... gxf5 {[%clk 0:02:19.3]} 15. Bg5 {[%clk 0:02:31.7]}
15... Qb6 {[%clk 0:01:56.2]} 16. Qd2 {[%clk 0:02:24.4]} 16... Nb5 {[%clk
0:01:47.4]} 17. Rb3 {[%clk 0:02:15.9]} 17... Na7 {[%clk 0:01:32.7]} 18. Rc1
{[%clk 0:02:03.1]} 18... Bb5 {[%clk 0:01:26.4]} 19. Ne3 {[%clk 0:01:57.1]} 19...
Rxc1+ {[%clk 0:01:22.8]} 20. Qxc1 {[%clk 0:01:58]} 20... Nc6 {[%clk 0:01:22.5]}
21. a3 {[%clk 0:01:49.1]} 21... Be7 {[%clk 0:01:16.2]} 22. Bxe7 {[%clk 0:01:41]}
22... Nxe7 {[%clk 0:01:06.4]} 23. Rc3 {[%clk 0:01:39.7]} 23... Nc6 {[%clk
0:01:06.3]} 24. Qc2 {[%clk 0:01:35.1]} 24... Rg8 {[%clk 0:01:01.9]} 25. a4
{[%clk 0:01:29.1]} 25... Nxb4 {[%clk 0:00:55.9]} 26. Qb2 {[%clk 0:00:34.9]}
26... Bc6 {[%clk 0:00:54.1]} 27. Rc5 {[%clk 0:00:14.1]} 27... a5 {[%clk
0:00:46.3]} 28. h4 {[%clk 0:00:14.3]} 28... Qa6 {[%clk 0:00:42.6]} 29. Ng5
{[%clk 0:00:09.5]} 29... Nd3 {[%clk 0:00:42.1]} 30. Qc2 {[%clk 0:00:06.3]} 30...
Nb4 {[%clk 0:00:33]} 31. Qc3 {[%clk 0:00:04]} 31... Qb6 {[%clk 0:00:27.4]} 32.
g3 {[%clk 0:00:03]} 32... Ke7 {[%clk 0:00:23.5]} 33. Ng2 {[%clk 0:00:03.3]}
33... Ra8 {[%clk 0:00:23.2]} 34. Nf4 {[%clk 0:00:03.7]} 34... Na2 {[%clk
0:00:22.1]} 35. Qc2 {[%clk 0:00:02.9]} 35... Nb4 {[%clk 0:00:20.7]} 36. Qd2
{[%clk 0:00:03.4]} 36... Bxa4 {[%clk 0:00:19]} 37. Nxh5 {[%clk 0:00:03]} 37...
Nc6 {[%clk 0:00:17.4]} 38. Nh7 {[%clk 0:00:02]} 38... f4 {[%clk 0:00:16.6]} 39.
Qxf4 {[%clk 0:00:02.1]} 39... Qb1+ {[%clk 0:00:16.7]} 40. Kh2 {[%clk 0:00:01.8]}
40... Qxh7 {[%clk 0:00:17.6]} 41. Qg5+ {[%clk 0:00:01.7]} 41... Kf8 {[%clk
0:00:16.4]} 42. Nf6 {[%clk 0:00:02.1]} 42... Qg6 {[%clk 0:00:16.5]} 43. Qf4
{[%clk 0:00:02]} 43... Bc2 {[%clk 0:00:16.1]} 44. h5 {[%clk 0:00:01.9]} 44...
Qf5 {[%clk 0:00:16.2]} 45. Qe3 {[%clk 0:00:02.1]} 45... Be4 {[%clk 0:00:16.2]}
46. Rc3 {[%clk 0:00:01.4]} 46... a4 {[%clk 0:00:15]} 47. Ra3 {[%clk 0:00:01.4]}
47... Bb1 {[%clk 0:00:13.3]} 48. f3 {[%clk 0:00:01.7]} 48... Qc2+ {[%clk
0:00:13.3]} 49. Kh3 {[%clk 0:00:01.5]} 49... Qb2 {[%clk 0:00:13]} 50. g4 {[%clk
0:00:01.8]} 50... Qc2 {[%clk 0:00:11.1]} 51. Rc3 {[%clk 0:00:01.7]} 51... Qd1
{[%clk 0:00:11]} 52. Qh6+ {[%clk 0:00:01.8]} 52... Ke7 {[%clk 0:00:10.9]} 53.
Qg5 {[%clk 0:00:01.7]} 53... Qh1+ {[%clk 0:00:08.9]} 54. Kg3 {[%clk 0:00:02.2]}
54... Qe1+ {[%clk 0:00:08.9]} 55. Kh3 {[%clk 0:00:02.4]} 55... Kd8 {[%clk
0:00:07]} 56. Nxd5+ {[%clk 0:00:02.4]} 56... Kc8 {[%clk 0:00:07.7]} 57. Qg8+
{[%clk 0:00:01.9]} 57... Kd7 {[%clk 0:00:07.3]} 58. Qxf7+ {[%clk 0:00:02.4]}
58... Kc8 {[%clk 0:00:07.6]} 59. Qc7# {[%clk 0:00:02.6]} 1-0

[Event "Early-Titled-Tuesday-Blitz-November-28-2023"]
[Site "Chess.com"]
[Date "2023.11.28"]
[Round "2"]
[White "SlavenPastar"]
[Black "GHANDEEVAM2003"]
[Result "0-1"]
[WhiteElo "2650"]
[BlackElo "3139"]
[TimeControl "180+1"]
[EndTime "8:18:45 PST"]
[Termination "GHANDEEVAM2003 won by checkmate"]

1. Nf3 {[%clk 0:03:00.9]} 1... g6 {[%clk 0:02:56.2]} 2. g3 {[%clk 0:02:57.1]}
2... Bg7 {[%clk 0:02:55.9]} 3. d4 {[%clk 0:02:57.5]} 3... c5 {[%clk 0:02:54.5]}
4. c3 {[%clk 0:02:55.9]} 4... b6 {[%clk 0:02:53.3]} 5. Bg2 {[%clk 0:02:55.9]}
5... Bb7 {[%clk 0:02:53.8]} 6. O-O {[%clk 0:02:55.3]} 6... Nf6 {[%clk
0:02:53.5]} 7. Re1 {[%clk 0:02:49.1]} 7... O-O {[%clk 0:02:52.9]} 8. Qc2 {[%clk
0:02:47.2]} 8... d5 {[%clk 0:02:44.3]} 9. Ne5 {[%clk 0:02:38.1]} 9... Nc6 {[%clk
0:02:42]} 10. Nxc6 {[%clk 0:02:38.3]} 10... Bxc6 {[%clk 0:02:42.9]} 11. Nd2
{[%clk 0:02:37.6]} 11... Rc8 {[%clk 0:02:41.1]} 12. Nf3 {[%clk 0:02:37]} 12...
Ne4 {[%clk 0:02:40.6]} 13. a4 {[%clk 0:02:24.4]} 13... cxd4 {[%clk 0:02:36.1]}
14. cxd4 {[%clk 0:02:10.7]} 14... Qd6 {[%clk 0:02:35.5]} 15. Qb3 {[%clk
0:02:01.8]} 15... Qf6 {[%clk 0:02:35.1]} 16. Bf4 {[%clk 0:01:53.9]} 16... g5
{[%clk 0:02:30.5]} 17. Be5 {[%clk 0:01:53.5]} 17... Qf5 {[%clk 0:02:31.1]} 18.
Bxg7 {[%clk 0:01:52.4]} 18... Kxg7 {[%clk 0:02:32]} 19. Qe3 {[%clk 0:01:43.7]}
19... a5 {[%clk 0:02:27.8]} 20. b3 {[%clk 0:01:35]} 20... f6 {[%clk 0:02:19.9]}
21. Nd2 {[%clk 0:01:20.5]} 21... Nxd2 {[%clk 0:02:11.7]} 22. Qxd2 {[%clk
0:01:21.4]} 22... Bb7 {[%clk 0:02:06.5]} 23. Rac1 {[%clk 0:01:21.1]} 23... Qd7
{[%clk 0:02:04.6]} 24. e3 {[%clk 0:01:09.4]} 24... Qd6 {[%clk 0:01:59.5]} 25.
Bh3 {[%clk 0:01:08.1]} 25... e6 {[%clk 0:01:58.9]} 26. Bf1 {[%clk 0:01:01.6]}
26... Qa3 {[%clk 0:01:54.1]} 27. Rxc8 {[%clk 0:00:33.5]} 27... Rxc8 {[%clk
0:01:55]} 28. Qd3 {[%clk 0:00:31]} 28... Qb4 {[%clk 0:01:44.6]} 29. Rb1 {[%clk
0:00:27.8]} 29... Rc3 {[%clk 0:01:38.5]} 30. Qb5 {[%clk 0:00:27.1]} 30... Qxb5
{[%clk 0:01:38.7]} 31. Bxb5 {[%clk 0:00:23.5]} 31... e5 {[%clk 0:01:38.9]} 32.
Kf1 {[%clk 0:00:19.8]} 32... Bc8 {[%clk 0:01:37.2]} 33. Rb2 {[%clk 0:00:12.7]}
33... Rc1+ {[%clk 0:01:27.9]} 34. Ke2 {[%clk 0:00:12.4]} 34... Bg4+ {[%clk
0:01:28.1]} 35. Kd2 {[%clk 0:00:12.6]} 35... Rd1+ {[%clk 0:01:25.3]} 36. Kc3
{[%clk 0:00:12.6]} 36... Rc1+ {[%clk 0:01:16.5]} 37. Rc2 {[%clk 0:00:12.1]}
37... Rh1 {[%clk 0:01:16.8]} 38. h4 {[%clk 0:00:08.9]} 38... gxh4 {[%clk
0:01:13.4]} 39. gxh4 {[%clk 0:00:09.8]} 39... Rxh4 {[%clk 0:01:14.1]} 40. Bc6
{[%clk 0:00:10.2]} 40... Bf3 {[%clk 0:01:10.3]} 41. b4 {[%clk 0:00:09.8]} 41...
exd4+ {[%clk 0:01:08.1]} 42. exd4 {[%clk 0:00:09.6]} 42... axb4+ {[%clk
0:01:08.8]} 43. Kxb4 {[%clk 0:00:08.8]} 43... Rxd4+ {[%clk 0:01:09.5]} 44. Kb5
{[%clk 0:00:09.4]} 44... h5 {[%clk 0:00:41.7]} 45. Kxb6 {[%clk 0:00:08.1]} 45...
h4 {[%clk 0:00:41.6]} 46. Rc3 {[%clk 0:00:06.7]} 46... Rb4+ {[%clk 0:00:38.4]}
47. Kc5 {[%clk 0:00:06.1]} 47... Rf4 {[%clk 0:00:38.1]} 48. a5 {[%clk
0:00:06.1]} 48... h3 {[%clk 0:00:38.2]} 49. a6 {[%clk 0:00:06.3]} 49... h2
{[%clk 0:00:37.7]} 50. a7 {[%clk 0:00:06.8]} 50... h1=Q {[%clk 0:00:32.1]} 51.
a8=Q {[%clk 0:00:07.3]} 51... Qe1 {[%clk 0:00:29.4]} 52. Qa5 {[%clk 0:00:06.7]}
52... Rc4+ {[%clk 0:00:27.8]} 53. Kd6 {[%clk 0:00:03.9]} 53... Qe5+ {[%clk
0:00:23.3]} 54. Kd7 {[%clk 0:00:03.8]} 54... Qxc3 {[%clk 0:00:21.5]} 55. Qd8
{[%clk 0:00:03]} 55... Bg4+ {[%clk 0:00:20.3]} 56. Kd6 {[%clk 0:00:02.7]} 56...
Qe5# {[%clk 0:00:20.3]} 0-1

[Event "Early-Titled-Tuesday-Blitz-November-28-2023"]
[Site "Chess.com"]
[Date "2023.11.28"]
[Round "2"]
[White "VladimirBugayev"]
[Black "Ginzburg_Yakov"]
[Result "1/2-1/2"]
[WhiteElo "2331"]
[BlackElo "2595"]
[TimeControl "180+1"]
[EndTime "8:18:48 PST"]
[Termination "Game drawn - insufficient material"]

1. e4 {[%clk 0:03:00.9]} 1... c5 {[%clk 0:02:58.8]} 2. Nc3 {[%clk 0:02:59.6]}
2... e6 {[%clk 0:02:58.8]} 3. f4 {[%clk 0:02:58.6]} 3... d5 {[%clk 0:02:56.2]}
4. Nf3 {[%clk 0:02:58.3]} 4... Nc6 {[%clk 0:02:53.7]} 5. Bb5 {[%clk 0:02:58.2]}
5... d4 {[%clk 0:02:52.6]} 6. Nb1 {[%clk 0:02:48.7]} 6... Bd7 {[%clk 0:02:52.3]}
7. d3 {[%clk 0:02:46.6]} 7... a6 {[%clk 0:02:51.9]} 8. Bxc6 {[%clk 0:02:46.4]}
8... Bxc6 {[%clk 0:02:51.9]} 9. b3 {[%clk 0:02:46.7]} 9... g6 {[%clk 0:02:42.2]}
10. Ne5 {[%clk 0:02:46.3]} 10... Qc7 {[%clk 0:02:37.3]} 11. O-O {[%clk
0:02:40.2]} 11... Bg7 {[%clk 0:02:37.4]} 12. Nxc6 {[%clk 0:02:40]} 12... Qxc6
{[%clk 0:02:37.7]} 13. a4 {[%clk 0:02:35.9]} 13... Ne7 {[%clk 0:02:37.1]} 14. a5
{[%clk 0:02:33.1]} 14... O-O {[%clk 0:02:36.7]} 15. Na3 {[%clk 0:02:32.8]} 15...
f5 {[%clk 0:02:31.3]} 16. e5 {[%clk 0:02:32]} 16... Nd5 {[%clk 0:02:31.2]} 17.
Nc4 {[%clk 0:02:32.3]} 17... Rad8 {[%clk 0:02:24.9]} 18. Bd2 {[%clk 0:02:32]}
18... Kh8 {[%clk 0:02:21.5]} 19. Qf3 {[%clk 0:02:32]} 19... Qc7 {[%clk
0:02:16.3]} 20. Rab1 {[%clk 0:02:22.6]} 20... Rf7 {[%clk 0:02:10]} 21. b4 {[%clk
0:02:16.2]} 21... cxb4 {[%clk 0:01:48.1]} 22. Bxb4 {[%clk 0:02:16]} 22... Bf8
{[%clk 0:01:49]} 23. Bd6 {[%clk 0:02:06.4]} 23... Bxd6 {[%clk 0:01:48.5]} 24.
exd6 {[%clk 0:01:50.5]} 24... Rxd6 {[%clk 0:01:48]} 25. Nxd6 {[%clk 0:01:49.8]}
25... Qxd6 {[%clk 0:01:47.9]} 26. Rfe1 {[%clk 0:01:47.7]} 26... Ne3 {[%clk
0:01:17.8]} 27. Rxe3 {[%clk 0:01:45.1]} 27... dxe3 {[%clk 0:01:17.8]} 28. Qxe3
{[%clk 0:01:23.9]} 28... Rc7 {[%clk 0:01:17.4]} 29. Rb6 {[%clk 0:01:19.3]} 29...
Rc6 {[%clk 0:01:03.9]} 30. Rxb7 {[%clk 0:01:13]} 30... Rxc2 {[%clk 0:01:03.7]}
31. h3 {[%clk 0:00:57.8]} 31... Qd5 {[%clk 0:00:53.2]} 32. Qe5+ {[%clk
0:00:42.4]} 32... Qxe5 {[%clk 0:00:51.8]} 33. fxe5 {[%clk 0:00:43.3]} 33... Rc5
{[%clk 0:00:47]} 34. d4 {[%clk 0:00:39.8]} 34... Rxa5 {[%clk 0:00:46.7]} 35. Rb6
{[%clk 0:00:40.2]} 35... Rd5 {[%clk 0:00:39.3]} 36. Rxa6 {[%clk 0:00:34.7]}
36... Rxd4 {[%clk 0:00:38.9]} 37. Rxe6 {[%clk 0:00:35.2]} 37... Kg8 {[%clk
0:00:35.8]} 38. Re7 {[%clk 0:00:35]} 38... Re4 {[%clk 0:00:35.4]} 39. Kf2 {[%clk
0:00:34.6]} 39... h5 {[%clk 0:00:33.6]} 40. Kf3 {[%clk 0:00:34.7]} 40... Kf8
{[%clk 0:00:33.6]} 41. Re6 {[%clk 0:00:31]} 41... Kf7 {[%clk 0:00:33.5]} 42.
Rf6+ {[%clk 0:00:31.3]} 42... Kg7 {[%clk 0:00:33.7]} 43. Re6 {[%clk 0:00:31.9]}
43... Kf7 {[%clk 0:00:32.3]} 44. Rf6+ {[%clk 0:00:32.1]} 44... Kg7 {[%clk
0:00:32.6]} 45. Re6 {[%clk 0:00:32.6]} 45... g5 {[%clk 0:00:30.8]} 46. Re7+
{[%clk 0:00:25.1]} 46... Kg6 {[%clk 0:00:30.7]} 47. Re6+ {[%clk 0:00:24.9]}
47... Kg7 {[%clk 0:00:30.3]} 48. Re7+ {[%clk 0:00:23.2]} 48... Kf8 {[%clk
0:00:29.5]} 49. Rh7 {[%clk 0:00:22.6]} 49... g4+ {[%clk 0:00:28.1]} 50. Kf2
{[%clk 0:00:22.6]} 50... Rxe5 {[%clk 0:00:17.6]} 51. Rxh5 {[%clk 0:00:21.3]}
51... gxh3 {[%clk 0:00:15.6]} 52. Rxh3 {[%clk 0:00:19.9]} 52... Kg7 {[%clk
0:00:16.5]} 53. Re3 {[%clk 0:00:17.4]} 53... Kf6 {[%clk 0:00:15.5]} 54. Rb3
{[%clk 0:00:16.4]} 54... Kg5 {[%clk 0:00:15.6]} 55. Rg3+ {[%clk 0:00:16.6]}
55... Kf4 {[%clk 0:00:15.3]} 56. Rf3+ {[%clk 0:00:16.3]} 56... Kg4 {[%clk
0:00:15.5]} 57. Rg3+ {[%clk 0:00:16.5]} 57... Kf4 {[%clk 0:00:15.9]} 58. Rf3+
{[%clk 0:00:16.9]} 58... Ke4 {[%clk 0:00:16.2]} 59. Re3+ {[%clk 0:00:17.2]}
59... Kd5 {[%clk 0:00:16.6]} 60. Rxe5+ {[%clk 0:00:16.7]} 60... Kxe5 {[%clk
0:00:16.7]} 61. Ke3 {[%clk 0:00:17.2]} 61... f4+ {[%clk 0:00:16.7]} 62. Kf3
{[%clk 0:00:17.3]} 62... Kf5 {[%clk 0:00:16.8]} 63. g3 {[%clk 0:00:17.9]} 63...
fxg3 {[%clk 0:00:16.6]} 64. Kxg3 {[%clk 0:00:18.6]} 1/2-1/2